[Event "Rapid Tournament (RAP)"]
[Site "Biel, Switzerland"]
[Date "2026.07.12"]
[Round "4.31"]
[White "Sadeghi, Hassan Roger"]
[Black "Brixius, Dirk"]
[Result "1-0"]
[TimeControl "15 + 5"]
[WhiteTitle "-"]
[BlackTitle "-"]
[WhiteFideId "1304712"]
[BlackFideId "12909734"]
[WhiteElo "2028"]
[BlackElo "1821"]

1. Nf3 {[%clk 00:15:04]} {[%emt 00:00:04]} c6 {[%clk 00:15:10]} {[%emt
00:00:03]} 2. g3 {[%clk 00:14:56]} {[%emt 00:00:11]} d5 {[%clk 00:15:13]}
{[%emt 00:00:02]} 3. Bg2 {[%clk 00:14:59]} {[%emt 00:00:02]} Nf6 {[%clk
00:15:15]} {[%emt 00:00:03]} 4. O-O {[%clk 00:14:59]} {[%emt 00:00:05]} Bf5
{[%clk 00:15:01]} {[%emt 00:00:19]} 5. b3 {[%clk 00:14:59]} {[%emt 00:00:05]}
e6 {[%clk 00:14:56]} {[%emt 00:00:10]} 6. Bb2 {[%clk 00:15:03]} {[%emt
00:00:01]} Bd6 {[%clk 00:14:43]} {[%emt 00:00:18]} 7. d3 {[%clk 00:15:04]}
{[%emt 00:00:04]} O-O {[%clk 00:14:36]} {[%emt 00:00:12]} 8. Nbd2 {[%clk
00:15:04]} {[%emt 00:00:05]} Na6 {[%clk 00:14:17]} {[%emt 00:00:24]} 9. c4
{[%clk 00:14:55]} {[%emt 00:00:14]} Qe7 {[%clk 00:13:43]} {[%emt 00:00:39]} 10.
a3 {[%clk 00:14:35]} {[%emt 00:00:26]} Rac8 {[%clk 00:13:40]} {[%emt 00:00:07]}
11. Re1 {[%clk 00:13:22]} {[%emt 00:01:17]} Rfd8 {[%clk 00:13:41]} {[%emt
00:00:05]} 12. Qc2 {[%clk 00:13:15]} {[%emt 00:00:12]} b5 {[%clk 00:13:26]}
{[%emt 00:00:19]} 13. Nh4 {[%clk 00:12:35]} {[%emt 00:00:46]} bxc4 {[%clk
00:12:49]} {[%emt 00:00:43]} 14. Nxf5 {[%clk 00:12:27]} {[%emt 00:00:12]} exf5
{[%clk 00:12:53]} {[%emt 00:00:02]} 15. dxc4 {[%clk 00:12:29]} {[%emt
00:00:03]} g6 {[%clk 00:12:44]} {[%emt 00:00:14]} 16. Qc3 {[%clk 00:12:03]}
{[%emt 00:00:30]} dxc4 {[%clk 00:12:07]} {[%emt 00:00:42]} 17. Qxf6 {[%clk
00:11:54]} {[%emt 00:00:14]} Qxf6 {[%clk 00:12:11]} {[%emt 00:00:02]} 18. Bxf6
{[%clk 00:11:57]} {[%emt 00:00:01]} cxb3 {[%clk 00:11:52]} {[%emt 00:00:23]} 19.
Bxd8 {[%clk 00:11:55]} {[%emt 00:00:07]} b2 {[%clk 00:11:49]} {[%emt 00:00:09]}
20. Ra2 {[%clk 00:11:35]} {[%emt 00:00:25]} Rxd8 {[%clk 00:11:52]} {[%emt
00:00:03]} 21. Rxb2 {[%clk 00:11:36]} {[%emt 00:00:04]} Bxa3 {[%clk 00:11:42]}
{[%emt 00:00:15]} 22. Ra2 {[%clk 00:11:39]} {[%emt 00:00:01]} Nb4 {[%clk
00:11:45]} {[%emt 00:00:02]} 23. Rxa3 {[%clk 00:11:40]} {[%emt 00:00:04]} Rxd2
{[%clk 00:11:49]} {[%emt 00:00:02]} 24. Rxa7 {[%clk 00:11:43]} {[%emt
00:00:01]} 1-0

[Event "Rapid Tournament (RAP)"]
[Site "Biel, Switzerland"]
[Date "2026.07.12"]
[Round "4.32"]
[White "Alrefae, Ahmad"]
[Black "Labrovic, Jakov"]
[Result "0-1"]
[TimeControl "15 + 5"]
[WhiteTitle "-"]
[BlackTitle "-"]
[WhiteFideId "10306510"]
[BlackFideId "14549786"]
[WhiteElo "1797"]
[BlackElo "2005"]

1. e4 {[%clk 00:15:09]} c5 {[%clk 00:15:09]} {[%emt 00:00:01]} 2. Nf3 {[%clk
00:15:13]} {[%emt 00:00:02]} d6 {[%clk 00:15:13]} {[%emt 00:00:01]} 3. d4
{[%clk 00:15:17]} {[%emt 00:00:03]} cxd4 {[%clk 00:15:17]} 4. Nxd4 {[%clk
00:15:21]} Nf6 {[%clk 00:15:20]} {[%emt 00:00:01]} 5. Nc3 {[%clk 00:15:26]} a6
{[%clk 00:15:24]} 6. Qd3 {[%clk 00:15:29]} {[%emt 00:00:02]} Bd7 {[%clk
00:15:05]} {[%emt 00:00:24]} 7. Bg5 {[%clk 00:15:13]} {[%emt 00:00:21]} Nc6
{[%clk 00:14:58]} {[%emt 00:00:12]} 8. f4 {[%clk 00:15:09]} {[%emt 00:00:09]}
e5 {[%clk 00:14:21]} {[%emt 00:00:43]} 9. Nf5 {[%clk 00:14:52]} {[%emt
00:00:22]} Bxf5 {[%clk 00:14:09]} {[%emt 00:00:16]} 10. exf5 {[%clk 00:14:56]}
{[%emt 00:00:01]} Nd4 {[%clk 00:13:12]} {[%emt 00:01:02]} 11. O-O-O {[%clk
00:14:06]} {[%emt 00:00:55]} Be7 {[%clk 00:13:07]} {[%emt 00:00:10]} 12. Re1
{[%clk 00:13:14]} {[%emt 00:00:57]} Qa5 {[%clk 00:11:14]} {[%emt 00:01:58]} 13.
Kb1 {[%clk 00:11:02]} {[%emt 00:02:17]} Rc8 {[%clk 00:10:56]} {[%emt 00:00:23]}
14. g4 {[%clk 00:09:32]} {[%emt 00:01:35]} Nd5 {[%clk 00:09:55]} {[%emt
00:01:05]} 15. Nd1 {[%clk 00:07:32]} {[%emt 00:02:06]} Qxe1 {[%clk 00:09:30]}
{[%emt 00:00:31]} 16. Bg2 {[%clk 00:07:35]} {[%emt 00:00:02]} Qa5 {[%clk
00:08:39]} {[%emt 00:00:55]} 17. c3 {[%clk 00:07:15]} {[%emt 00:00:26]} Bxg5
{[%clk 00:07:56]} {[%emt 00:00:47]} 18. fxg5 {[%clk 00:07:18]} {[%emt
00:00:02]} Nf4 {[%clk 00:07:58]} {[%emt 00:00:03]} 19. Qe4 {[%clk 00:06:50]}
{[%emt 00:00:34]} Nc6 {[%clk 00:06:47]} {[%emt 00:01:15]} 20. Ne3 {[%clk
00:06:06]} {[%emt 00:00:50]} O-O {[%clk 00:06:32]} {[%emt 00:00:20]} 21. f6
{[%clk 00:05:56]} {[%emt 00:00:14]} d5 {[%clk 00:05:58]} {[%emt 00:00:39]} 22.
Qf3 {[%clk 00:05:11]} {[%emt 00:00:51]} g6 {[%clk 00:05:14]} {[%emt 00:00:48]}
23. Qg3 {[%clk 00:04:51]} {[%emt 00:00:24]} d4 {[%clk 00:05:01]} {[%emt
00:00:20]} 24. Nf5 {[%clk 00:04:01]} {[%emt 00:00:54]} dxc3 {[%clk 00:04:16]}
{[%emt 00:00:49]} 25. Qh4 {[%clk 00:03:49]} {[%emt 00:00:18]} Qb5 {[%clk
00:03:48]} {[%emt 00:00:34]} 26. b3 {[%clk 00:03:37]} {[%emt 00:00:17]} Qd3+
{[%clk 00:03:18]} {[%emt 00:00:34]} 27. Ka1 {[%clk 00:03:41]} {[%emt 00:00:02]}
Qc2 {[%clk 00:02:44]} {[%emt 00:00:38]} 28. Rb1 {[%clk 00:03:27]} {[%emt
00:00:20]} Nb4 {[%clk 00:02:46]} {[%emt 00:00:03]} 29. Ne7+ {[%clk 00:03:20]}
{[%emt 00:00:12]} Kh8 {[%clk 00:02:49]} 0-1

[Event "Rapid Tournament (RAP)"]
[Site "Biel, Switzerland"]
[Date "2026.07.12"]
[Round "4.33"]
[White "Arntz, Christoph"]
[Black "Moesching, Colin"]
[Result "0-1"]
[TimeControl "15 + 5"]
[WhiteTitle "-"]
[BlackTitle "-"]
[WhiteFideId "16257723"]
[BlackFideId "1345036"]
[WhiteElo "1999"]
[BlackElo "1820"]

1. f4 {[%clk 00:15:06]} {[%emt 01:10:51]} d5 {[%clk 00:14:12]} {[%emt
00:00:57]} 2. Nf3 {[%clk 00:15:09]} {[%emt 00:00:04]} Nf6 {[%clk 00:14:16]}
{[%emt 00:00:01]} 3. e3 {[%clk 00:15:09]} {[%emt 00:00:04]} c5 {[%clk
00:14:17]} {[%emt 00:00:05]} 4. d4 {[%clk 00:15:08]} {[%emt 00:00:05]} b6
{[%clk 00:14:10]} {[%emt 00:00:12]} 5. c3 {[%clk 00:14:47]} {[%emt 00:00:25]}
g6 {[%clk 00:14:00]} {[%emt 00:00:15]} 6. Nbd2 {[%clk 00:14:25]} {[%emt
00:00:27]} Bg7 {[%clk 00:14:03]} {[%emt 00:00:03]} 7. Bb5+ {[%clk 00:14:11]}
{[%emt 00:00:19]} Bd7 {[%clk 00:13:40]} {[%emt 00:00:28]} 8. Bd3 {[%clk
00:13:50]} {[%emt 00:00:26]} O-O {[%clk 00:13:42]} {[%emt 00:00:03]} 9. O-O
{[%clk 00:13:51]} {[%emt 00:00:03]} Qe8 {[%clk 00:13:23]} {[%emt 00:00:25]} 10.
Ne5 {[%clk 00:13:17]} {[%emt 00:00:38]} Bb5 {[%clk 00:13:11]} {[%emt 00:00:18]}
11. Qe2 {[%clk 00:13:02]} {[%emt 00:00:19]} Bxd3 {[%clk 00:13:05]} {[%emt
00:00:11]} 12. Qxd3 {[%clk 00:13:05]} {[%emt 00:00:03]} Nbd7 {[%clk 00:12:53]}
{[%emt 00:00:17]} 13. Qe2 {[%clk 00:11:39]} {[%emt 00:01:32]} Rc8 {[%clk
00:11:55]} {[%emt 00:01:03]} 14. Qf3 {[%clk 00:11:30]} {[%emt 00:00:13]} Rc7
{[%clk 00:10:41]} {[%emt 00:01:19]} 15. g4 {[%clk 00:11:22]} {[%emt 00:00:13]}
Qa8 {[%clk 00:10:23]} {[%emt 00:00:23]} 16. h4 {[%clk 00:10:56]} {[%emt
00:00:31]} h5 {[%clk 00:10:17]} {[%emt 00:00:12]} 17. gxh5 {[%clk 00:10:12]}
{[%emt 00:00:48]} Nxh5 {[%clk 00:10:15]} {[%emt 00:00:07]} 18. Rf2 {[%clk
00:08:54]} {[%emt 00:01:23]} e6 {[%clk 00:09:19]} {[%emt 00:01:01]} 19. Rg2
{[%clk 00:08:27]} {[%emt 00:00:31]} Ndf6 {[%clk 00:08:49]} {[%emt 00:00:37]} 20.
Qh3 {[%clk 00:07:53]} {[%emt 00:00:39]} Qc8 {[%clk 00:08:00]} {[%emt 00:00:54]}
21. Ndf3 {[%clk 00:07:07]} {[%emt 00:00:51]} b5 {[%clk 00:06:33]} {[%emt
00:01:32]} 22. Bd2 {[%clk 00:07:08]} {[%emt 00:00:03]} a5 {[%clk 00:06:03]}
{[%emt 00:00:35]} 23. Rf1 {[%clk 00:06:08]} {[%emt 00:01:05]} Ne4 {[%clk
00:05:22]} {[%emt 00:00:46]} 24. Be1 {[%clk 00:06:11]} {[%emt 00:00:02]} b4
{[%clk 00:05:19]} {[%emt 00:00:09]} 25. Ng5 {[%clk 00:04:26]} {[%emt 00:01:49]}
Nef6 {[%clk 00:04:14]} {[%emt 00:01:10]} 26. Ng4 {[%clk 00:04:11]} {[%emt
00:00:20]} cxd4 {[%clk 00:04:11]} {[%emt 00:00:09]} 27. cxb4 {[%clk 00:03:50]}
{[%emt 00:00:25]} dxe3 {[%clk 00:03:56]} {[%emt 00:00:19]} 28. bxa5 {[%clk
00:03:52]} {[%emt 00:00:04]} Rc4 {[%clk 00:03:43]} {[%emt 00:00:18]} 29. Nxe3
{[%clk 00:02:54]} {[%emt 00:01:03]} Rxf4 {[%clk 00:03:40]} {[%emt 00:00:08]} 30.
Rgf2 {[%clk 00:02:28]} {[%emt 00:00:30]} Ra4 {[%clk 00:02:21]} {[%emt
00:01:25]} 31. a3 {[%clk 00:02:15]} {[%emt 00:00:19]} Ne4 {[%clk 00:02:15]}
{[%emt 00:00:10]} 32. Nxe4 {[%clk 00:02:14]} {[%emt 00:00:06]} Rxe4 {[%clk
00:02:19]} {[%emt 00:00:01]} 33. Bb4 {[%clk 00:02:12]} {[%emt 00:00:07]} Bd4
{[%clk 00:01:55]} {[%emt 00:00:28]} 34. Rf3 {[%clk 00:01:53]} {[%emt 00:00:24]}
Nf4 {[%clk 00:01:39]} {[%emt 00:00:22]} 35. Rxf4 {[%clk 00:01:44]} {[%emt
00:00:14]} Bxe3+ {[%clk 00:01:43]} {[%emt 00:00:02]} 36. R4f2 {[%clk 00:01:39]}
{[%emt 00:00:09]} e5 {[%clk 00:01:28]} {[%emt 00:00:20]} 37. Qxc8 {[%clk
00:01:35]} {[%emt 00:00:10]} Rxc8 {[%clk 00:01:32]} 38. Kg2 {[%clk 00:01:26]}
{[%emt 00:00:13]} Bxf2 {[%clk 00:01:33]} {[%emt 00:00:04]} 39. Rxf2 {[%clk
00:01:30]} {[%emt 00:00:02]} Rxb4 {[%clk 00:00:49]} {[%emt 00:00:49]} 40. axb4
{[%clk 00:01:33]} {[%emt 00:00:02]} Rb8 {[%clk 00:00:54]} 41. Rd2 {[%clk
00:01:07]} {[%emt 00:00:30]} d4 {[%clk 00:00:58]} {[%emt 00:00:01]} 42. Kf3
{[%clk 00:01:00]} {[%emt 00:00:12]} Rxb4 {[%clk 00:01:02]} 43. Ke4 {[%clk
00:01:05]} f6 {[%clk 00:01:05]} {[%emt 00:00:03]} 44. b3 {[%clk 00:00:59]}
{[%emt 00:00:10]} Rxb3 {[%clk 00:01:07]} {[%emt 00:00:03]} 45. Ra2 {[%clk
00:01:03]} Kf7 {[%clk 00:01:10]} {[%emt 00:00:03]} 46. a6 {[%clk 00:01:08]}
{[%emt 00:00:01]} Ke6 {[%clk 00:01:14]} 0-1

[Event "Rapid Tournament (RAP)"]
[Site "Biel, Switzerland"]
[Date "2026.07.12"]
[Round "4.34"]
[White "Alexakis, Dimitrios"]
[Black "Pinelli, Gian"]
[Result "1/2-1/2"]
[TimeControl "15 + 5"]
[WhiteTitle "-"]
[BlackTitle "-"]
[WhiteFideId "4200527"]
[BlackFideId "1348710"]
[WhiteElo "1954"]
[BlackElo "1774"]

1. e4 {[%clk 00:12:13]} {[%emt 00:02:55]} c6 {[%clk 00:15:08]} {[%emt
00:00:02]} 2. d4 {[%clk 00:12:05]} {[%emt 00:00:13]} d5 {[%clk 00:15:12]}
{[%emt 00:00:02]} 3. exd5 {[%clk 00:12:03]} {[%emt 00:00:06]} cxd5 {[%clk
00:15:15]} {[%emt 00:00:02]} 4. c4 {[%clk 00:12:07]} Nf6 {[%clk 00:15:19]}
{[%emt 00:00:02]} 5. Nc3 {[%clk 00:12:09]} {[%emt 00:00:02]} g6 {[%clk
00:15:22]} {[%emt 00:00:02]} 6. Nf3 {[%clk 00:12:09]} {[%emt 00:00:05]} Bg7
{[%clk 00:15:25]} {[%emt 00:00:02]} 7. cxd5 {[%clk 00:12:01]} {[%emt 00:00:13]}
Nxd5 {[%clk 00:15:09]} {[%emt 00:00:21]} 8. Bb5+ {[%clk 00:12:01]} {[%emt
00:00:05]} Bd7 {[%clk 00:11:50]} {[%emt 00:03:24]} 9. Qb3 {[%clk 00:12:00]}
{[%emt 00:00:06]} Nxc3 {[%clk 00:11:25]} {[%emt 00:00:30]} 10. bxc3 {[%clk
00:12:03]} {[%emt 00:00:02]} O-O {[%clk 00:11:27]} {[%emt 00:00:04]} 11. O-O
{[%clk 00:11:59]} {[%emt 00:00:08]} Bxb5 {[%clk 00:11:18]} {[%emt 00:00:14]} 12.
Qxb5 {[%clk 00:12:02]} {[%emt 00:00:02]} Qd7 {[%clk 00:11:21]} {[%emt
00:00:01]} 13. Qb3 {[%clk 00:11:17]} {[%emt 00:00:51]} Nc6 {[%clk 00:11:19]}
{[%emt 00:00:08]} 14. Bg5 {[%clk 00:10:57]} {[%emt 00:00:24]} h6 {[%clk
00:11:01]} {[%emt 00:00:23]} 15. Bf4 {[%clk 00:10:52]} {[%emt 00:00:09]} e6
{[%clk 00:10:33]} {[%emt 00:00:34]} 16. Rad1 {[%clk 00:10:25]} {[%emt
00:00:31]} Rfd8 {[%clk 00:10:16]} {[%emt 00:00:23]} 17. h4 {[%clk 00:09:45]}
{[%emt 00:00:44]} Rac8 {[%clk 00:09:39]} {[%emt 00:00:43]} 18. Rfe1 {[%clk
00:09:06]} {[%emt 00:00:44]} a6 {[%clk 00:08:43]} {[%emt 00:01:02]} 19. Qa3
{[%clk 00:08:40]} {[%emt 00:00:30]} Qd5 {[%clk 00:07:23]} {[%emt 00:01:24]} 20.
Rc1 {[%clk 00:06:24]} {[%emt 00:02:22]} Na5 {[%clk 00:06:21]} {[%emt 00:01:08]}
21. Ne5 {[%clk 00:06:27]} {[%emt 00:00:02]} Nc4 {[%clk 00:06:01]} {[%emt
00:00:25]} 22. Nxc4 {[%clk 00:06:22]} {[%emt 00:00:10]} Qxc4 {[%clk 00:05:24]}
{[%emt 00:00:42]} 23. Qb2 {[%clk 00:05:21]} {[%emt 00:01:05]} b5 {[%clk
00:05:14]} {[%emt 00:00:15]} 24. Qd2 {[%clk 00:05:00]} {[%emt 00:00:26]} Kh7
{[%clk 00:05:06]} {[%emt 00:00:13]} 25. Qe3 {[%clk 00:03:54]} {[%emt 00:01:11]}
Rd5 {[%clk 00:04:49]} {[%emt 00:00:22]} 26. Qe4 {[%clk 00:03:31]} {[%emt
00:00:27]} Qxa2 {[%clk 00:04:07]} {[%emt 00:00:47]} 27. Ra1 {[%clk 00:03:12]}
{[%emt 00:00:25]} Qc4 {[%clk 00:03:13]} {[%emt 00:00:58]} 28. Rxa6 {[%clk
00:03:12]} {[%emt 00:00:06]} Qxc3 {[%clk 00:02:36]} {[%emt 00:00:43]} 29. Rc1
{[%clk 00:01:49]} {[%emt 00:01:27]} Qxd4 {[%clk 00:02:39]} {[%emt 00:00:02]} 30.
Qxd4 {[%clk 00:01:28]} {[%emt 00:00:26]} Rxc1+ {[%clk 00:02:43]} {[%emt
00:00:01]} 31. Bxc1 {[%clk 00:01:32]} {[%emt 00:00:01]} Rxd4 {[%clk 00:02:47]}
{[%emt 00:00:02]} 32. Be3 {[%clk 00:01:36]} Rd1+ {[%clk 00:01:48]} {[%emt
00:01:04]} 33. Kh2 {[%clk 00:01:39]} {[%emt 00:00:01]} Bf6 {[%clk 00:01:46]}
{[%emt 00:00:07]} 34. Rb6 {[%clk 00:01:33]} {[%emt 00:00:12]} Rb1 {[%clk
00:01:48]} {[%emt 00:00:03]} 35. h5 {[%clk 00:01:23]} {[%emt 00:00:14]} gxh5
{[%clk 00:01:41]} {[%emt 00:00:12]} 36. Kg3 {[%clk 00:01:14]} {[%emt 00:00:14]}
Kg6 {[%clk 00:01:44]} {[%emt 00:00:03]} 37. Kf3 {[%clk 00:01:12]} {[%emt
00:00:06]} b4 {[%clk 00:01:44]} {[%emt 00:00:06]} 38. Rb8 {[%clk 00:00:18]}
{[%emt 00:00:58]} Bg5 {[%clk 00:01:27]} {[%emt 00:00:22]} 39. Bd4 {[%clk
00:00:16]} {[%emt 00:00:07]} f6 {[%clk 00:01:02]} {[%emt 00:00:31]} 40. Ke4
{[%clk 00:00:14]} {[%emt 00:00:06]} Re1+ {[%clk 00:00:35]} {[%emt 00:00:32]} 41.
Kd3 {[%clk 00:00:16]} {[%emt 00:00:03]} e5 {[%clk 00:00:34]} {[%emt 00:00:07]}
42. Bc5 {[%clk 00:00:19]} {[%emt 00:00:01]} Rd1+ {[%clk 00:00:36]} {[%emt
00:00:03]} 43. Ke2 {[%clk 00:00:22]} {[%emt 00:00:03]} Rd2+ {[%clk 00:00:39]}
{[%emt 00:00:01]} 44. Kf3 {[%clk 00:00:25]} {[%emt 00:00:02]} Kf5 {[%clk
00:00:40]} {[%emt 00:00:04]} 45. Rxb4 {[%clk 00:00:26]} {[%emt 00:00:05]} Rc2
{[%clk 00:00:31]} {[%emt 00:00:14]} 46. Be3 {[%clk 00:00:28]} {[%emt 00:00:02]}
Bxe3 {[%clk 00:00:33]} {[%emt 00:00:03]} 47. Kxe3 {[%clk 00:00:31]} {[%emt
00:00:02]} Rc3+ {[%clk 00:00:37]} {[%emt 00:00:01]} 48. Ke2 {[%clk 00:00:35]}
h4 {[%clk 00:00:39]} {[%emt 00:00:03]} 49. Rxh4 {[%clk 00:00:37]} {[%emt
00:00:03]} Kg5 {[%clk 00:00:41]} {[%emt 00:00:03]} 50. Ra4 {[%clk 00:00:40]}
{[%emt 00:00:03]} f5 {[%clk 00:00:41]} {[%emt 00:00:05]} 51. g3 {[%clk
00:00:39]} {[%emt 00:00:05]} h5 {[%clk 00:00:42]} {[%emt 00:00:04]} 52. Ra8
{[%clk 00:00:43]} {[%emt 00:00:02]} f4 {[%clk 00:00:40]} {[%emt 00:00:06]} 53.
Rg8+ {[%clk 00:00:42]} {[%emt 00:00:05]} Kf5 {[%clk 00:00:34]} {[%emt
00:00:10]} 54. Rf8+ {[%clk 00:00:40]} {[%emt 00:00:09]} Kg5 {[%clk 00:00:22]}
{[%emt 00:00:17]} 55. Rg8+ {[%clk 00:00:43]} {[%emt 00:00:02]} Kf5 {[%clk
00:00:13]} {[%emt 00:00:14]} 56. Rf8+ {[%clk 00:00:47]} {[%emt 00:00:01]} Kg5
{[%clk 00:00:09]} {[%emt 00:00:10]} 1/2-1/2

[Event "Rapid Tournament (RAP)"]
[Site "Biel, Switzerland"]
[Date "2026.07.12"]
[Round "4.35"]
[White "Gheorghiu, Harry"]
[Black "Laub, Patrick"]
[Result "0-1"]
[TimeControl "15 + 5"]
[WhiteTitle "-"]
[BlackTitle "-"]
[WhiteFideId "1248839"]
[BlackFideId "1302566"]
[WhiteElo "1751"]
[BlackElo "1949"]

1. e4 {[%clk 00:15:07]} {[%emt 00:00:02]} c6 {[%clk 00:15:09]} {[%emt
00:00:05]} 2. Nc3 {[%clk 00:15:10]} d5 {[%clk 00:15:11]} {[%emt 00:00:01]} 3.
Nf3 {[%clk 00:15:14]} {[%emt 00:00:02]} dxe4 {[%clk 00:15:10]} {[%emt
00:00:06]} 4. Nxe4 {[%clk 00:15:16]} {[%emt 00:00:02]} Bg4 {[%clk 00:15:12]}
{[%emt 00:00:04]} 5. h3 {[%clk 00:15:11]} {[%emt 00:00:10]} Bh5 {[%clk
00:15:13]} {[%emt 00:00:04]} 6. Ng3 {[%clk 00:15:12]} {[%emt 00:00:04]} Bg6
{[%clk 00:15:14]} {[%emt 00:00:03]} 7. Bc4 {[%clk 00:15:13]} {[%emt 00:00:05]}
e6 {[%clk 00:15:15]} {[%emt 00:00:04]} 8. O-O {[%clk 00:15:13]} {[%emt
00:00:04]} Nf6 {[%clk 00:15:18]} {[%emt 00:00:03]} 9. d3 {[%clk 00:15:15]}
{[%emt 00:00:04]} Bd6 {[%clk 00:15:16]} {[%emt 00:00:06]} 10. Bg5 {[%clk
00:15:04]} {[%emt 00:00:16]} Bxg3 {[%clk 00:14:28]} {[%emt 00:00:53]} 11. fxg3
{[%clk 00:14:59]} {[%emt 00:00:10]} Nbd7 {[%clk 00:14:16]} {[%emt 00:00:17]} 12.
Qd2 {[%clk 00:14:12]} {[%emt 00:00:52]} Qc7 {[%clk 00:10:53]} {[%emt 00:03:27]}
13. Bf4 {[%clk 00:14:00]} {[%emt 00:00:17]} Qb6+ {[%clk 00:10:47]} {[%emt
00:00:12]} 14. Kh1 {[%clk 00:13:54]} {[%emt 00:00:11]} O-O {[%clk 00:10:26]}
{[%emt 00:00:25]} 15. Rae1 {[%clk 00:12:18]} {[%emt 00:01:42]} Nh5 {[%clk
00:10:07]} {[%emt 00:00:24]} 16. Bd6 {[%clk 00:10:05]} {[%emt 00:02:17]} c5
{[%clk 00:10:09]} {[%emt 00:00:04]} 17. Bxf8 {[%clk 00:10:07]} {[%emt
00:00:03]} Nxg3+ {[%clk 00:10:10]} {[%emt 00:00:05]} 18. Kh2 {[%clk 00:09:58]}
{[%emt 00:00:13]} Nxf1+ {[%clk 00:10:10]} {[%emt 00:00:05]} 19. Rxf1 {[%clk
00:09:55]} {[%emt 00:00:08]} Rxf8 {[%clk 00:10:11]} {[%emt 00:00:03]} 20. Bb3
{[%clk 00:07:33]} {[%emt 00:02:28]} Qd6+ {[%clk 00:09:42]} {[%emt 00:00:34]} 21.
g3 {[%clk 00:07:26]} {[%emt 00:00:12]} Nf6 {[%clk 00:09:20]} {[%emt 00:00:27]}
22. Nh4 {[%clk 00:06:52]} {[%emt 00:00:39]} b5 {[%clk 00:09:00]} {[%emt
00:00:25]} 23. Nxg6 {[%clk 00:06:21]} {[%emt 00:00:36]} hxg6 {[%clk 00:09:00]}
{[%emt 00:00:04]} 24. Qe3 {[%clk 00:05:45]} {[%emt 00:00:41]} Rd8 {[%clk
00:07:22]} {[%emt 00:01:44]} 25. Qf3 {[%clk 00:04:42]} {[%emt 00:01:08]} Rd7
{[%clk 00:06:14]} {[%emt 00:01:12]} 26. Kg2 {[%clk 00:04:31]} {[%emt 00:00:16]}
a6 {[%clk 00:05:26]} {[%emt 00:00:54]} 27. a4 {[%clk 00:03:54]} {[%emt
00:00:43]} Kh7 {[%clk 00:04:56]} {[%emt 00:00:34]} 28. axb5 {[%clk 00:02:50]}
{[%emt 00:01:10]} axb5 {[%clk 00:04:59]} {[%emt 00:00:01]} 29. Qf4 {[%clk
00:02:38]} {[%emt 00:00:16]} Qxf4 {[%clk 00:03:51]} {[%emt 00:01:14]} 30. Rxf4
{[%clk 00:02:41]} {[%emt 00:00:02]} Nd5 {[%clk 00:03:43]} {[%emt 00:00:13]} 31.
Bxd5 {[%clk 00:02:30]} {[%emt 00:00:16]} exd5 {[%clk 00:03:45]} {[%emt
00:00:03]} 32. Rh4+ {[%clk 00:02:14]} {[%emt 00:00:22]} Kg8 {[%clk 00:03:48]}
33. Kf2 {[%clk 00:02:08]} {[%emt 00:00:11]} Re7 {[%clk 00:03:30]} {[%emt
00:00:23]} 34. Rf4 {[%clk 00:02:06]} {[%emt 00:00:06]} f6 {[%clk 00:03:30]}
{[%emt 00:00:05]} 35. Rf3 {[%clk 00:02:05]} {[%emt 00:00:07]} Kf7 {[%clk
00:03:30]} {[%emt 00:00:05]} 36. Re3 {[%clk 00:02:07]} {[%emt 00:00:03]} Ra7
{[%clk 00:02:42]} {[%emt 00:00:54]} 37. b3 {[%clk 00:01:51]} {[%emt 00:00:20]}
Ra2 {[%clk 00:02:26]} {[%emt 00:00:20]} 38. Re2 {[%clk 00:01:54]} {[%emt
00:00:03]} b4 {[%clk 00:01:52]} {[%emt 00:00:39]} 39. Kf3 {[%clk 00:01:53]}
{[%emt 00:00:06]} g5 {[%clk 00:01:37]} {[%emt 00:00:20]} 40. h4 {[%clk
00:01:13]} {[%emt 00:00:45]} gxh4 {[%clk 00:01:41]} {[%emt 00:00:02]} 41. gxh4
{[%clk 00:01:17]} Ra1 {[%clk 00:01:45]} {[%emt 00:00:02]} 42. Kg2 {[%clk
00:01:11]} {[%emt 00:00:10]} Rc1 {[%clk 00:01:38]} {[%emt 00:00:12]} 43. Kg3
{[%clk 00:00:58]} {[%emt 00:00:18]} Kg6 {[%clk 00:01:42]} {[%emt 00:00:01]} 44.
Rh2 {[%clk 00:00:47]} {[%emt 00:00:17]} Kh5 {[%clk 00:01:40]} {[%emt 00:00:06]}
45. Kf4 {[%clk 00:00:42]} {[%emt 00:00:09]} g6 {[%clk 00:01:31]} {[%emt
00:00:15]} 46. Kg3 {[%clk 00:00:37]} {[%emt 00:00:10]} Rg1+ {[%clk 00:01:32]}
{[%emt 00:00:04]} 47. Kf2 {[%clk 00:00:39]} {[%emt 00:00:03]} Rg4 {[%clk
00:01:35]} {[%emt 00:00:02]} 48. Ke3 {[%clk 00:00:24]} {[%emt 00:00:20]} Rxh4
{[%clk 00:01:32]} {[%emt 00:00:08]} 49. Rxh4+ {[%clk 00:00:26]} {[%emt
00:00:04]} Kxh4 {[%clk 00:01:36]} {[%emt 00:00:01]} 50. d4 {[%clk 00:00:30]}
cxd4+ {[%clk 00:01:34]} {[%emt 00:00:07]} 51. Kxd4 {[%clk 00:00:33]} {[%emt
00:00:01]} g5 {[%clk 00:01:35]} {[%emt 00:00:04]} 52. Kc5 {[%clk 00:00:35]}
{[%emt 00:00:03]} g4 {[%clk 00:01:37]} {[%emt 00:00:03]} 53. Kxb4 {[%clk
00:00:39]} g3 {[%clk 00:01:41]} {[%emt 00:00:01]} 54. Ka5 {[%clk 00:00:42]}
{[%emt 00:00:02]} g2 {[%clk 00:01:44]} {[%emt 00:00:02]} 55. b4 {[%clk
00:00:46]} {[%emt 00:00:01]} g1=Q {[%clk 00:01:46]} {[%emt 00:00:03]} 0-1